Cogmind - Beta 12 @@@ ROGUE MODE // 2023.03.19 @ 16:49:42 Player: ZLD1 Result: Destroyed by P-60 Hacker with Shock Rifle Performance ------------- Evolutions (4) 2000 Regions Visited (10) 2000 Robots Destroyed (34) 170 Value Destroyed (1073) 1073 Prototype IDs (27) 540 Alien Tech Used (0) 0 Bonus (454) 454 TOTAL SCORE: 6237 Bonus ------- Follower Combat Kills 210 Aligned with FarCom 300 Friendly Fire -56 Cogmind --------- Core Integrity 0/850 Matter 180/300 Energy 99/100 System Corruption 1% Temperature Cool (0) Movement Core (50) Location -6/Lower Caves Parts ------- > --- POWER (3) -------- (None) > --- PROPULSION (5) --- (None) > --- UTILITY (5) ------ Cloaking Device > --- WEAPON (2) ------- (None) > --- INVENTORY (5) ---- Weight Redist. System Authchip [Processor] Shock Maul Peak State ------------ > --- POWER ------------ Improved Deuterium Engine Micro Nuclear Core > --- PROPULSION ------- Carbon-fiber Leg Titanium Leg Armored Leg Xenon Bombardment Thruster > --- UTILITY ---------- Small Storage Unit Weight Redist. System Visual Processing Unit Weapon Cycler > --- WEAPON ----------- Gatling Laser > --- INVENTORY -------- Light Ion Engine Light Ion Engine Improved Gravmag System Improved Heat Sink Improved Signal Interpreter Advanced Terrain Scan Processor Field Lobotomy Kit Mining Laser [Rating: 38] Favorites ----------- Power Ion Engine Engine Ion Engine Power Core Micro Nuclear Core Propulsion Aluminum Leg Leg Aluminum Leg Hover Unit Improved Airjet Flight Unit Flight Unit Utility Small Storage Unit Device Weight Redist. System Storage Small Storage Unit Processor Visual Processing Unit Weapon Light Assault Rifle Energy Gun Gatling Laser Ballistic Gun Light Assault Rifle Ballistic Cannon Magnetic Acceleration Cannon Launcher Mini Grenade Launcher Special Weapon Field Lobotomy Kit Build | -11 -10 -10 -9 -9 -9 -8 -8 -7 -6 -6 ------- Run | Jun Mat Min Mat Min Exi Min Mat Fac Fac Low Slots Evolved 8 | . . . 2 . . . 2 2 2 . Power 2 | . . . . . . . 1 1 . . Propulsion 3 | . . . 1 . . . 1 . 1 . Utility 3 | . . . 1 . . . . 1 1 . Weapon . | . . . . . . . . . . . Parts Attached 59 | 7 . 1 7 1 . 2 4 23 11 3 Power 11 | 2 . . . 1 . 1 1 4 2 . Engine 9 | 2 . . . 1 . 1 1 2 2 . Core 2 | . . . . . . . . 2 . . Reactor . | . . . . . . . . . . . Propulsion 20 | 2 . . 3 . . 1 2 7 4 1 Treads . | . . . . . . . . . . . Leg 10 | 2 . . . . . . . 5 3 . Wheel . | . . . . . . . . . . . Hover 3 | . . . . . . . . 1 1 1 Flight 7 | . . . 3 . . 1 2 1 . . Utility 9 | 1 . . 1 . . . 1 4 . 2 Device 7 | . . . . . . . 1 4 . 2 Storage 1 | 1 . . . . . . . . . . Processor 1 | . . . 1 . . . . . . . Hackware . | . . . . . . . . . . . Protection . | . . . . . . . . . . . Artifact . | . . . . . . . . . . . Weapon 19 | 2 . 1 3 . . . . 8 5 . Energy Gun 4 | 1 . . . . . . . 2 1 . Energy Cannon . | . . . . . . . . . . . Ballistic Gun 4 | 1 . 1 . . . . . 1 1 . Ballistic Cannon 1 | . . . . . . . . . 1 . Launcher 4 | . . . 3 . . . . 1 . . Special Weapon 6 | . . . . . . . . 4 2 . Impact Weapon . | . . . . . . . . . . . Slashing Weapon . | . . . . . . . . . . . Piercing Weapon . | . . . . . . . . . . . Special Melee Weapon . | . . . . . . . . . . . Unidentified Prototypes 4 | . . . 1 . . . . 2 . 1 Parts Lost 40 | . . . . . . 1 . 18 14 7 Power 9 | . . . . . . 1 . 4 4 . Propulsion 16 | . . . . . . . . 8 5 3 Utility 7 | . . . . . . . . 3 2 2 Weapon 8 | . . . . . . . . 3 3 2 Highest Loss Streak 13 | . . . . . . 1 . 7 13 6 To Critical Strikes . | . . . . . . . . . . . Average Slot Usage (%) 70 | . 73 81 74 88 88 87 91 64 47 24 Engine 9 | . 14 14 11 11 11 10 12 6 4 . Leg 14 | . 28 28 7 . . . . 9 10 2 Hover 1 | . . . . . . . . 3 1 4 Flight 8 | . . . 22 33 33 33 35 8 2 . Device 5 | . . . . . . . 7 13 10 11 Storage 9 | . 14 14 11 11 11 11 9 7 1 . Processor 4 | . . . . 11 11 11 9 7 6 1 Ballistic Gun 9 | . 14 24 12 . . . . 1 . 1 Launcher 4 | . . . 9 22 22 22 18 2 . . Naked Turns . | . . . . . . . . . . . Heaviest Build 26 | 13 13 12 12 12 12 12 13 26 26 13 Greatest Support 54 | 20 20 20 20 13 13 13 24 40 54 8 Greatest Overweight (x) 1 | 1 . . . . . . . 1 1 1 Average Overweight (x) . | . . . . . . . . . . . Largest Inventory Capacity 8 | 8 8 8 8 8 8 8 8 8 8 5 Average Capacity 7 | 7 8 8 8 8 8 8 8 8 5 5 Most Carried 8 | 6 3 8 8 8 8 8 8 8 8 3 Average Carried 5 | 2 2 6 7 8 7 7 7 6 4 1 Final Capacity 8 | 8 8 8 8 8 8 8 8 8 5 5 Final Carried 8 | 1 3 7 8 8 7 8 8 7 3 3 Class Distribution -------------------- 94% | Mutant 3% | Sprinter Dominant Class ---------------- Mutant | -10/Materials Mutant | -10/Mines Mutant | -9/Materials Mutant | -9/Mines Mutant | -9/Exiles Mutant | -8/Mines Mutant | -8/Materials Mutant | -7/Factory Mutant | -6/Factory Mutant | -6/Lower Caves Resources | -11 -10 -10 -9 -9 -9 -8 -8 -7 -6 -6 ----------- Run | Jun Mat Min Mat Min Exi Min Mat Fac Fac Low Matter Collected 875 | 237 . 52 5 . . 42 . 408 88 43 Remotely . | . . . . . . . . . . . Salvage Created 865 | . . 17 135 . . 269 14 335 95 . Parts 52 | . . 2 8 . . 22 1 14 5 . Haulers Intercepted . | . . . . . . . . . . . Recyclers Shooed . | . . . . . . . . . . . Parts Field Recycled . | . . . . . . . . . . . Retrieved Matter . | . . . . . . . . . . . Parts Self-Destructed . | . . . . . . . . . . . Prevented . | . . . . . . . . . . . Kills | -11 -10 -10 -9 -9 -9 -8 -8 -7 -6 -6 ------- Run | Jun Mat Min Mat Min Exi Min Mat Fac Fac Low Combat Hostiles Destroyed 27 | . . 1 3 . . 12 2 6 3 . Guns 6 | . . 1 . . . . . 3 2 . Cannons 1 | . . . . . . . . . 1 . AOE 20 | . . . 3 . . 12 2 3 . . Classes Destroyed 10 | . . 1 3 . . 3 . 1 2 . Worker 2 | . . . . . . 1 . 1 . . Tunneler 3 | . . . 1 . . 1 . 1 . . Recycler 2 | . . . 1 . . . . 1 . . Swarmer 7 | . . 1 . . . 3 2 . 1 . Grunt 14 | . . . 3 . . 6 . 5 . . Brawler 2 | . . . . . . 2 . . . . Duelist 1 | . . . . . . 1 . . . . Sentry 1 | . . . . . . . . . 1 . Hunter 1 | . . . . . . . . . 1 . Programmer 1 | . . . . . . . . 1 . . Best Kill Streak 10 | . . 1 5 . . 10 2 4 2 . Combat Bots Only 9 | . . 1 3 . . 9 2 3 2 . Max Kills in Single Turn 4 | . . 1 2 . . 4 2 2 1 . Gunslinging . | . . . . . . . . . . . Exploded 3 | . . . 1 . . 3 2 1 . . Melee . | . . . . . . . . . . . Uniques/NPCs Destroyed . | . . . . . . . . . . . Combat | -11 -10 -10 -9 -9 -9 -8 -8 -7 -6 -6 -------- Run | Jun Mat Min Mat Min Exi Min Mat Fac Fac Low Damage Taken 4743 | . . 100 122 . . 82 13 1837 1962 627 Core 1392 | . . 8 27 . . 32 13 454 647 211 Absorbed by Shields 48 | . . . . . . . . . 48 . Core Remaining (%) 82 | 100 . 96 . . . 85 97 35 . . Volleys Fired 87 | . . 16 7 . . 6 1 35 22 . Largest 2 | . . 2 2 . . 2 2 2 2 . Hottest 100 | . . 40 50 . . 60 60 80 100 . Shots Fired 114 | . . 20 14 . . 12 2 36 30 . Gun 70 | . . 20 8 . . . . 26 16 . Cannon 8 | . . . . . . . . . 8 . Launcher 26 | . . . 6 . . 12 2 6 . . Special 10 | . . . . . . . . 4 6 . Kinetic 62 | . . 20 8 . . . . 18 16 . Thermal 21 | . . . . . . . . 8 13 . Explosive 26 | . . . 6 . . 12 2 6 . . Electromagnetic . | . . . . . . . . . . . Robot Hit Streak 17 | . . 4 3 . . 5 . 16 17 . Robot Miss Streak 4 | . . 2 3 . . . . 3 4 . Penetration Max 1 | . . . . . . . . 1 . . Secondary Targets . | . . . . . . . . . . . Shots Hit Robots 58 | . . 8 5 . . 4 . 23 18 . Core Hits 60 | . . 3 10 . . 19 . 23 5 . Critical Kills . | . . . . . . . . . . . Critical Parts Destroyed 1 | . . . . . . . . . 1 . Critical Strikes 4 | . . . . . . . . . 4 . Burn 1 | . . . . . . . . . 1 . Destroy 1 | . . . . . . . . . 1 . Blast 2 | . . . . . . . . . 2 . Melee Attacks . | . . . . . . . . . . . Impact . | . . . . . . . . . . . Slashing . | . . . . . . . . . . . Piercing . | . . . . . . . . . . . Sneak Attacks . | . . . . . . . . . . . Combat Hostiles . | . . . . . . . . . . . Follow-up Attacks . | . . . . . . . . . . . Damage Inflicted 3434 | . . 110 605 . . 1138 110 1076 395 . Guns 748 | . . 61 26 . . . . 497 164 . Cannons 174 | . . . . . . . . . 174 . Explosions 2365 | . . . 579 . . 1138 110 538 . . Melee . | . . . . . . . . . . . Ramming 99 | . . 49 . . . . . 41 9 . Kinetic 575 | . . 61 26 . . . . 240 248 . Thermal 395 | . . . . . . . . 257 138 . Explosive 2365 | . . . 579 . . 1138 110 538 . . Electromagnetic . | . . . . . . . . . . . Impact . | . . . . . . . . . . . Slashing . | . . . . . . . . . . . Piercing . | . . . . . . . . . . . Highest Corruption 2 | . . . . . . . . 2 . 1 Average Corruption 1 | . . . . . . . . 1 . 1 Corruption Purged 1 | . . . . . . . . 1 . . Corruption Blocked . | . . . . . . . . . . . Effects 4 | . . . . . . . . 3 . 1 Matter Fused 2 | . . . . . . . . 2 . . Heat Flow Errors 1 | . . . . . . . . 1 . . Parts Rejected 1 | . . . . . . . . . . 1 Overload Shots . | . . . . . . . . . . . Overflow Damage 70 | . . . . . . 26 20 24 . . Projectiles . | . . . . . . . . . . . Explosions 70 | . . . . . . 26 20 24 . . Melee . | . . . . . . . . . . . Knockbacks . | . . . . . . . . . . . Impact . | . . . . . . . . . . . Kinetic . | . . . . . . . . . . . Secondary . | . . . . . . . . . . . Self-Inflicted Damage 84 | . . . 39 . . . . 45 . . Shots 6 | . . . 2 . . . . 4 . . Rammed 7 | . . . . . . . . 6 1 . Targets Rammed 23 | . . 8 . . . . . 13 2 . Kicked 16 | . . 8 . . . . . 7 1 . Crushed . | . . . . . . . . . . . Highest Temperature 158 | . . . 33 . . 43 4 158 138 . Average Temperature 45 | . . . 11 . . 28 3 57 57 . Received Heat Transfer 1140 | . . 6 66 . . 54 9 822 108 75 Siege Activations . | . . . . . . . . . . . Robots Corrupted . | . . . . . . . . . . . Combat Hostiles . | . . . . . . . . . . . Parts Fried . | . . . . . . . . . . . Impact Corruptions . | . . . . . . . . . . . Robots Melted . | . . . . . . . . . . . Combat Hostiles . | . . . . . . . . . . . Parts Melted 4 | . . . . . . . . 4 . . Heat Transferred 872 | . . . . . . . . 525 347 . Parts Sabotaged . | . . . . . . . . . . . Parts Stolen . | . . . . . . . . . . . Parts Stripped . | . . . . . . . . . . . Power Chain Reactions . | . . . . . . . . . . . Missiles Intercepted . | . . . . . . . . . . . Alert | -11 -10 -10 -9 -9 -9 -8 -8 -7 -6 -6 ------- Run | Jun Mat Min Mat Min Exi Min Mat Fac Fac Low Peak Influence 337 | . . 55 166 56 . 337 298 279 111 . Initial 135 | . . . . 56 . . 131 135 36 . Average 67 | . . 8 67 56 . 76 250 130 53 . Maximum Alert Level 1 | . . . . . . 1 1 1 . . Low Security (%) 86 | 100 100 100 100 100 . 79 7 70 100 . Level 1 13 | . . . . . . 20 92 29 . . Level 2 . | . . . . . . . . . . . Level 3 . | . . . . . . . . . . . Level 4 . | . . . . . . . . . . . Level 5 . | . . . . . . . . . . . High Security . | . . . . . . . . . . . Max Security . | . . . . . . . . . . . Squads Dispatched 9 | . . . 1 . . . 1 6 1 . Investigation 2 | . . . . . . . 1 1 . . Extermination 2 | . . . . . . . . 2 . . Reinforcement 3 | . . . 1 . . . . 1 1 . Assault . | . . . . . . . . . . . Garrison 2 | . . . . . . . . 2 . . Intercept . | . . . . . . . . . . . Searches Triggered . | . . . . . . . . . . . Construction Impeded 1 | . . . 1 . . . . . . . Haulers Reinforced . | . . . . . . . . . . . Active Scanning Responses . | . . . . . . . . . . . Cargo Convoy Interrupts . | . . . . . . . . . . . Stealth | -11 -10 -10 -9 -9 -9 -8 -8 -7 -6 -6 --------- Run | Jun Mat Min Mat Min Exi Min Mat Fac Fac Low Distress Signals 3 | . . . . . . . . 2 1 . Communications Jammed . | . . . . . . . . . . . Distress Signals . | . . . . . . . . . . . Times Spotted 82 | . . 3 6 . . 11 10 27 18 7 Peak Tracking Total 7 | . . 3 4 . . 6 4 6 7 5 Tactical Retreats 14 | . . . . . . . 1 6 4 3 Traps | -11 -10 -10 -9 -9 -9 -8 -8 -7 -6 -6 ------- Run | Jun Mat Min Mat Min Exi Min Mat Fac Fac Low Traps Triggered 4 | . . . . . . . 1 1 2 . Indirectly . | . . . . . . . . . . . Trap Hack Attempts . | . . . . . . . . . . . Triggered . | . . . . . . . . . . . Disarmed . | . . . . . . . . . . . Reprogrammed . | . . . . . . . . . . . Reused . | . . . . . . . . . . . Traps Extracted . | . . . . . . . . . . . Installed . | . . . . . . . . . . . Triggered 2 | . . 2 . . . . . . . . Most Traps Carried 5 | . . 5 . . . . . . . . Machines | -11 -10 -10 -9 -9 -9 -8 -8 -7 -6 -6 ---------- Run | Jun Mat Min Mat Min Exi Min Mat Fac Fac Low Machines Disabled 2 | . . . . . . . . 2 . . Max in Single Turn 1 | . . . . . . . . 1 . . Machines Repaired . | . . . . . . . . . . . Machines Sabotaged . | . . . . . . . . . . . Overloaded Fab Kills . | . . . . . . . . . . . Hacking | -11 -10 -10 -9 -9 -9 -8 -8 -7 -6 -6 --------- Run | Jun Mat Min Mat Min Exi Min Mat Fac Fac Low Machines Accessed 5 | . . . . . 4 . . 1 . . Terminals 1 | . . . . . . . . 1 . . Fabricators . | . . . . . . . . . . . Repair Stations . | . . . . . . . . . . . Recycling Units . | . . . . . . . . . . . Scanalyzers . | . . . . . . . . . . . Garrison Access . | . . . . . . . . . . . Total Hacks 31 | . . . . . 27 . . 4 . . Successful 29 | . . . . . 27 . . 2 . . Failed 2 | . . . . . . . . 2 . . Catastrophic . | . . . . . . . . . . . Database Lockouts . | . . . . . . . . . . . Manual 1 | . . . . . 1 . . . . . Terminals 4 | . . . . . . . . 4 . . Fabricators . | . . . . . . . . . . . Repair Stations . | . . . . . . . . . . . Recycling Units . | . . . . . . . . . . . Scanalyzers . | . . . . . . . . . . . Garrison Access . | . . . . . . . . . . . Terminal Hacks 29 | . . . . . 27 . . 2 . . Record 28 | . . . . . 26 . . 2 . . EX-Prototype ID Bank 1 | . . . . . 1 . . . . . Fabricator Hacks . | . . . . . . . . . . . Repair Station Hacks . | . . . . . . . . . . . Recycling Unit Hacks . | . . . . . . . . . . . Scanalyzer . | . . . . . . . . . . . Garrison Access Hacks . | . . . . . . . . . . . Unauthorized Hacks . | . . . . . . . . . . . Terminals . | . . . . . . . . . . . Fabricators . | . . . . . . . . . . . Repair Stations . | . . . . . . . . . . . Recycling Units . | . . . . . . . . . . . Scanalyzers . | . . . . . . . . . . . Garrison Access . | . . . . . . . . . . . Data Cores Recovered . | . . . . . . . . . . . Used . | . . . . . . . . . . . Hacking Detections 1 | . . . . . . . . 1 . . Full Trace Events 1 | . . . . . . . . 1 . . Feedback Events . | . . . . . . . . . . . Feedback Blocked . | . . . . . . . . . . . Robot Schematics Acquired . | . . . . . . . . . . . Robots Built . | . . . . . . . . . . . Authchips . | . . . . . . . . . . . Time . | . . . . . . . . . . . Total Robot Build Rating . | . . . . . . . . . . . Part Schematics Acquired . | . . . . . . . . . . . Parts Built . | . . . . . . . . . . . Authchips . | . . . . . . . . . . . Time . | . . . . . . . . . . . Total Part Build Rating . | . . . . . . . . . . . Parts Repaired . | . . . . . . . . . . . Time . | . . . . . . . . . . . Parts Recycled . | . . . . . . . . . . . Recycled Matter . | . . . . . . . . . . . Retrieved Matter . | . . . . . . . . . . . Retrieved Components . | . . . . . . . . . . . Parts Scanalyzed . | . . . . . . . . . . . Part Schematics Acquired . | . . . . . . . . . . . Parts Damaged . | . . . . . . . . . . . Bothacking | -11 -10 -10 -9 -9 -9 -8 -8 -7 -6 -6 ------------ Run | Jun Mat Min Mat Min Exi Min Mat Fac Fac Low Used RIF Installer . | . . . . . . . . . . . Robots Hacked . | . . . . . . . . . . . Non-combat . | . . . . . . . . . . . Combat . | . . . . . . . . . . . Robot Hacks Applied . | . . . . . . . . . . . Relay Couplers Released . | . . . . . . . . . . . Fabnet Peak Effective % . | . . . . . . . . . . . Robots Rewired . | . . . . . . . . . . . Allies Hacked . | . . . . . . . . . . . Hacks Repelled . | . . . . . . . . . . . Allies | -11 -10 -10 -9 -9 -9 -8 -8 -7 -6 -6 -------- Run | Jun Mat Min Mat Min Exi Min Mat Fac Fac Low Total Allies 7 | . . 2 . . . . . 4 1 . Largest Group 2 | . . 2 2 . . . . 2 1 . Highest-Rated Group 41 | . . 38 38 . . . . 37 41 . Highest-Rated Ally 41 | . . 31 31 . . . . 37 41 . Total Orders . | . . . . . . . . . . . Ally Attacks 31 | . . . 7 . . . . 20 4 . Total Damage 1073 | . . . 126 . . . . 821 126 . Kills 10 | . . . 1 . . . . 8 1 . Allies Corrupted . | . . . . . . . . . . . Allies Melted . | . . . . . . . . . . . Field Lobotomies 5 | . . . . . . . . 4 1 . Intel | -11 -10 -10 -9 -9 -9 -8 -8 -7 -6 -6 ------- Run | Jun Mat Min Mat Min Exi Min Mat Fac Fac Low Robot Analysis Total . | . . . . . . . . . . . Derelict Logs Recovered 2 | . . 2 . . . . . . . . Drone Launches . | . . . . . . . . . . . Drone Recoveries . | . . . . . . . . . . . Exploration | -11 -10 -10 -9 -9 -9 -8 -8 -7 -6 -6 ------------- Run | Jun Mat Min Mat Min Exi Min Mat Fac Fac Low Turns Passed 3422 | 55 68 1165 117 52 84 219 129 907 447 179 Spaces Moved 4012 | 47 56 915 173 147 241 578 273 926 363 293 Core 291 | 21 . . . . . . . 27 125 118 Treads . | . . . . . . . . . . . Legs 1589 | 26 56 915 25 . . . . 396 171 . Wheels . | . . . . . . . . . . . Hover 282 | . . . . . . . . 40 67 175 Flight 1850 | . . . 148 147 241 578 273 463 . . Fastest Speed 29 | 50 120 120 34 34 34 34 29 29 50 50 Average Speed 72 | 89 120 120 46 34 34 34 30 75 87 58 Slowest Speed 190 | 120 120 120 120 34 34 34 34 190 130 130 Overloaded Moves . | . . . . . . . . . . . Propulsion Burnouts . | . . . . . . . . . . . Robots Hopped 12 | . . . . . . 1 3 8 . . Cave-ins Triggered . | . . . . . . . . . . . Exploration Rate (%) 39 | 3 22 100 22 38 43 91 23 27 14 49 Regions Visited 10 Branch Regions 5 Pre-discovered Areas 1 | . . 1 . . . . . . . . Known Exits Taken 1 | . . . . . . 1 . . . . Unknown Exits Taken 9 | 1 1 1 1 1 1 . 1 1 1 . Scrap Searched 3 | . . 1 . . . 1 . . . 1 Spaces Dug . | . . . . . . . . . . . Terrain Destroyed 136 | . . . 27 . . 62 18 27 2 . Melee . | . . . . . . . . . . . Projectile 3 | . . . . . . . . 1 2 . AOE 133 | . . . 27 . . 62 18 26 . . Terrain Rammed . | . . . . . . . . . . . Walls Destroyed . | . . . . . . . . . . . Machines Disabled . | . . . . . . . . . . . Actions | -11 -10 -10 -9 -9 -9 -8 -8 -7 -6 -6 --------- Run | Jun Mat Min Mat Min Exi Min Mat Fac Fac Low Total 4409 | 60 57 967 196 148 243 586 312 1086 455 299 Wait 159 | . . 13 . . . . 32 76 38 . Move 3979 | 46 55 914 172 146 240 575 266 910 362 293 Hop 11 | . . . . . . 1 3 7 . . Pick Up 53 | 6 1 10 4 . 1 1 3 15 9 3 Fast Attach 16 | 1 . . 5 1 . 1 3 4 1 . Attach 40 | 6 . 1 . . . . 1 19 10 3 Detach 6 | 1 1 . . . . . . 4 . . Swap 3 | . . . 2 . . 1 . . . . Drop 21 | . . 5 6 1 2 1 3 3 . . Fire 87 | . . 16 7 . . 6 1 35 22 . Melee . | . . . . . . . . . . . Ram 7 | . . . . . . . . 6 1 . Kick 16 | . . 8 . . . . . 7 1 . Crush . | . . . . . . . . . . . Escape Stasis 11 | . . . . . . . . . 11 . Rewire . | . . . . . . . . . . . Trap . | . . . . . . . . . . . Miscellaneous . | . . . . . . . . . . . Route ------- -11/Junkyard -10/Materials -10/Mines (discovered 2 exits: [*Mat x2]) -9/Materials (discovered 3 exits: Mat / [*Min] / Sto) -9/Mines -9/Exiles -8/Mines -8/Materials -7/Factory -6/Factory (discovered 2 exits: [*Low x2]) -6/Lower Caves History --------- Turn | Location | Event 4 | -11/Junkyard | Discovered new exit (range 15) 56 | -11/Junkyard | Entered Materials 104 | -10/Materials | Discovered new exit (range 13) 124 | -10/Materials | Entered Mines 134 | -10/Mines | Learned Materials garrison access intel 140 | -10/Mines | Learned location of 2 exits from Materials 238 | -10/Mines | Found a hidden stash of uninstalled traps 315 | -10/Mines | Build established: Mutant 470 | -10/Mines | Learned location of Storage (-9) 673 | -10/Mines | Discovered new exit (range 9) 1025 | -10/Mines | Discovered new exit (range 8) 1289 | -10/Mines | Entered Materials 1289 | -9/Materials | Accompanied by 2 allies 1289 | -9/Materials | Evolved 2 slots: Propulsion x1, Utility x1 1290 | -9/Materials | Identified exit to Storage 1290 | -9/Materials | Identified exit to Materials 1296 | -9/Materials | Led the pair of lost Derelicts to an unsafe place 1399 | -9/Materials | Discovered new exit (range 9) 1406 | -9/Materials | Entered Mines 1457 | -9/Mines | Deemed a non-threat by the Exiles lab entrance 1457 | -9/Mines | Discovered new exit (range 5) 1458 | -9/Mines | Entered Exiles 1464 | -9/Exiles | Discovered new exit (range 17) 1467 | -9/Exiles | Met 8R-AWN 1473 | -9/Exiles | Met EX-HEX 1482 | -9/Exiles | Met EX-BIN 1486 | -9/Exiles | Aligned with FarCom system 1486 | -9/Exiles | Given EX-Vault access code 1503 | -9/Exiles | Opened EX-Vault 1506 | -9/Exiles | Found Field Lobotomy Kit 1514 | -9/Exiles | Warned to stay clear of 0b10 Research branches 1542 | -9/Exiles | Left Exiles lab with Field Lobotomy Kit 1542 | -9/Exiles | Entered Mines 1742 | -8/Mines | Discovered exit to Materials (range 7) 1745 | -8/Mines | Destroyed 9 combat bots 1761 | -8/Mines | Entered Materials 1761 | -8/Materials | Evolved 2 slots: Power x1, Propulsion x1 1762 | -8/Materials | Loaded intel: 1 garrison access location 1888 | -8/Materials | Discovered new exit (range 8) 1890 | -8/Materials | Entered Factory 1890 | -7/Factory | Evolved 2 slots: Power x1, Utility x1 2039 | -7/Factory | Lost 5 parts (1p2n1u1w) 2063 | -7/Factory | Assimilated B-48 Gladiator with FLK Orb 2069 | -7/Factory | Assimilated G-47 Trooper with FLK Orb 2244 | -7/Factory | Lost 3 parts (2p1n) 2244 | -7/Factory | Assimilated P-60 Hacker with FLK Orb 2439 | -7/Factory | Core integrity fell below 50% 2443 | -7/Factory | Assimilated Y-54 Guardian with FLK Orb 2477 | -7/Factory | Lost 7 parts (1p4n1u1w) 2602 | -7/Factory | Garrison activated, responded to threat 2795 | -7/Factory | Discovered new exit (range 2) 2797 | -7/Factory | Entered another Factory area 2797 | -6/Factory | Evolved 2 slots: Propulsion x1, Utility x1 2994 | -6/Factory | Assimilated H-66 Slayer with FLK Orb 3067 | -6/Factory | Core integrity fell below 50% 3109 | -6/Factory | Lost 13 parts (3p5n2u3w) 3196 | -6/Factory | Discovered new exit (range 16) 3235 | -6/Factory | Discovered new exit (range 15) 3244 | -6/Factory | Entered Lower Caves 3261 | -6/Lower Caves | Attracted the attention of an 0b10 checkpoint 3272 | -6/Lower Caves | Core integrity fell below 20% 3327 | -6/Lower Caves | Lost 6 parts (2n2u2w) 3423 | -6/Lower Caves | Destroyed by P-60 Hacker with Shock Rifle Last Messages --------------- 03266_ Flexi-carbon Leg destroyed. 03287_ Gauss Rifle destroyed. 03290_ Visual Processing Unit destroyed. 03290_ Imp. Heat Sink destroyed. 03296_ Magnetic Acceleration Cannon destroyed. 03307_ Searching scrap... 03307_ Found Cloaking Device. 03307_ Found Authchip [Processor]. 03307_ Found 37 Matter. 03308_ Acquired Authchip [Processor]. 03310_ Acquired Cloaking Device. 03312_ Acquired 37 matter. 03315_ M6-Y00(k) breaks down the debris. 03321_ Acquired 2 matter. 03322_ Acquired 3 matter. 03326_ Acquired 1 matter. 03330_ M6-Y00(k) destroyed. 03384_ Aerolev Unit destroyed. 03404_ System corrupted: Weight Redist. System rejected. 03404_ Acquired Weight Redist. System. Map ----- +----------------------------------------------------+ | ?????????????????????????????????????????????????? | | ?????????????????????????????????????????????????? | | ?????????????????????????????????????????????????? | | ?????????????????????????????????????????????????? | | ???????????????????????????#######???????????????? | | ???????????????????????????# #???????????????? | | ???????????????????????????# """ #???????????????? | | ???????????????????????????# """ #???????????????? | | ???????######??????????????# """ ##??????????????? | | ???????# ##???????####### """ #??###?????????? | | #####??# ##??????# #### ##????????? | | ?? ???????# ##???????? | | ??# ???????# #### # ##???#### | | #?? ????????# #??### ###### #??## | | #?# #????????# #????###???## #### | | ? ?# ###??????# #?????????## ## | | ??# ## ####???# #????????## | | #???# #???# #???????## ## | | ####?# ##### #??????## ## | | ## #?# ## #?###### ## # | | ### ### #### ## # | | #??##### ####### | | ##??????###?????? | | ## ####????????????? | | #### #????????????? | | ##??# @ #??#???????# | | ##??# ## ## ##???# | | # #??## ## #?? | | #### #???## ###### | | ???## #????## ###??? | | ????# #?????#### #????? | | ????# #????????## ## ##### ??? | | ###?# #?????????## ## #####? ????? | | """##" ##??##?????#### p #???????? | | """""" ### ##?????####### #????????? | | " ##??## #???# ####????????? | | """""" #??# ????# ##???????????? | | """##" #?## ????## #####????????????? | | ###?# ##?# #???## ##????????????????? | | ????## ######??# ##### ###?????????????????? | | ?????# #??????## ##???????????????????? | | ##???# ####??## ##????????????????????? | | # #??# ## #??# ### #?????????????????????? | | # ### #??# ##?# #?????????????????????? | | # #?## ###??## ????????????????????? | | # ### #?????# ??????????????????? | | # ##?????# ????????????????? | | #??????# ### ???????????????? | | ### ##??????## ##??????????????????? | | ##?## ####???????? ???????????????????? | +----------------------------------------------------+ Best States ------------- Heat Dissipation 37 Energy Generation 26 Energy Capacity 340 Matter Stores 300 Matter Capacity 300 Sight Range 18 Terrain Scan Range 16 Terrain Scan Density 10 ECM Strength 1 Cloak Strength 2 Additional Mass Support 6 Weapon Cycling 15 Evasion (%) 64 Authchip Count 1 Item Schematics ----------------- None Robot Schematics ------------------ None Fabricated ------------ Nothing Alien Tech Used ----------------- None Achievements -------------- None Challenges ------------ None Game ------ Seed ThrusterPowerCharge Manual? 0 Play Time 00:46:57 Cumulative 12.8 hours Start 2023.03.19 @ 16:01:14 End 2023.03.19 @ 16:49:42 Sessions 1 Manual Loads 0 Difficulty Rogue Special Mode None Game No. 28 Rogue 28 Adventurer 0 Explorer 0 Win Type - Total 0 Types 0/0/0/0/0/0/0/0/0 Lore% 16 Gallery% 21 Achievement% 16 Wizard Run 0 Options --------- ASCII 0 Keyboard 0 Movement Mouse Keybinds 0 Fullscreen 1 Font 24/Smallcaps Map View 64x52 Tactical HUD 1 Map Filters NONE Filters NONE Steam 1 RUN: 22293c58-8677-4697-8ba2-5d58d65b12f9